bitfinex/quotes_BTCUSD_20251226
["timestamp","ask_amount","ask_price","bid_price","bid_amount"]
[1766750101229,0.0112891,88581.0,88572.0,0.01129024]
[1766750101444,0.0112891,88581.0,88573.0,0.01129012]
[1766750101643,0.0112891,88581.0,88572.0,0.06774113]
[1766750101644,0.01128923,88580.0,88572.0,0.01129024]
[1766750102229,0.0112891,88581.0,88572.0,0.01129024]
[1766750102432,0.01128884,88583.0,88572.0,0.06774137]
[1766750102612,0.01128884,88583.0,88569.0,0.01132]
[1766750102613,0.01128923,88580.0,88571.0,0.01129037]
[1766750102809,0.01128923,88580.0,88569.0,0.06777261]
[1766750103024,0.01128923,88580.0,88572.0,0.01129024]
[1766750103601,0.0112891,88581.0,88572.0,0.06774086]
[1766750104013,0.01128897,88582.0,88573.0,0.0677404]
[1766750104241,0.0112891,88581.0,88573.0,0.01129012]
[1766750104434,0.01128897,88582.0,88574.0,0.01128999]
[1766750105302,0.0112891,88581.0,88573.0,0.01129012]
[1766750105868,0.01128923,88580.0,88572.0,0.01129024]
[1766750106066,0.0112891,88581.0,88573.0,0.01129012]
[1766750106872,0.01128923,88580.0,88572.0,0.01129024]
[1766750107461,0.01128923,88580.0,86360.0,0.002]
[1766750107462,0.00028118,88585.0,88574.0,0.01128999]
[1766750107663,0.00028118,88585.0,88582.0,0.0563566]
[1766750107855,0.00028118,88585.0,88582.0,0.04451763]
[1766750108885,0.01156977,88585.0,88582.0,0.04451763]
[1766750109819,0.06773441,88582.0,88579.0,0.01132]
[1766750110006,0.06773441,88582.0,88580.0,0.03377802]
[1766750110621,0.01128897,88582.0,88580.0,0.03377802]
[1766750112173,0.06773341,88583.0,88580.0,0.03377802]
[1766750113834,0.01128872,88584.0,88580.0,0.03377802]
[1766750114050,0.01128884,88583.0,88580.0,0.03377802]
[1766750114258,0.01128872,88584.0,88580.0,0.03377802]
[1766750114688,0.01156977,88585.0,88580.0,0.03377802]
[1766750114910,0.00028118,88585.0,88580.0,0.03377802]
[1766750115586,1.8e-07,88585.0,88580.0,0.03377802]
[1766750120228,0.01128877,88585.0,88580.0,0.03377802]
[1766750120459,0.01128872,88584.0,88580.0,0.03377802]
[1766750120829,0.01128877,88585.0,88580.0,0.03377802]
[1766750123031,1.8e-07,88585.0,88580.0,0.03377802]
[1766750123348,0.01128877,88585.0,88580.0,0.03377802]
[1766750123712,0.01128872,88584.0,88580.0,0.03377802]
[1766750123907,0.01128877,88585.0,88580.0,0.03377802]
[1766750124127,0.06773268,88584.0,88580.0,0.03377802]
[1766750124349,0.01128872,88584.0,88580.0,0.03349702]
[1766750124580,0.01128884,88583.0,88580.0,0.03349702]
[1766750125668,0.06773341,88583.0,88580.0,0.03349702]
[1766750125845,0.01128872,88584.0,88580.0,0.03349702]
[1766750126050,0.01128884,88583.0,88580.0,0.03349702]
[1766750126378,0.01128872,88584.0,88580.0,0.03349702]
[1766750126715,0.01128884,88583.0,88580.0,0.03349702]
[1766750127702,1.8e-07,88585.0,88580.0,0.03349702]
[1766750127906,0.01128872,88584.0,88580.0,0.03349702]
[1766750128286,1.8e-07,88585.0,88580.0,0.03349702]
[1766750129873,0.01128877,88585.0,88580.0,0.03349702]
[1766750131870,0.01128872,88584.0,88580.0,0.03349702]
[1766750132750,0.01128877,88585.0,88580.0,0.03349702]
[1766750133733,1.8e-07,88585.0,88580.0,0.03349702]
[1766750137882,1.8e-07,88585.0,88580.0,0.04478625]
[1766750138084,1.8e-07,88585.0,88581.0,0.0112891]
[1766750139383,1.8e-07,88585.0,88580.0,0.04478625]
[1766750139683,1.8e-07,88585.0,88580.0,0.03349702]
[1766750140324,1.8e-07,88585.0,88584.0,0.5]
[1766750146529,0.05644314,88585.0,88584.0,0.5]
[1766750147318,0.05644314,88585.0,88567.0,0.14702985]
[1766750147319,0.01128935,88579.0,88567.0,0.14702985]
[1766750147507,1.8e-07,88585.0,88572.0,0.01132]
[1766750147508,0.01129012,88573.0,88572.0,0.01132]
[1766750147708,0.01128986,88575.0,88572.0,0.01132]
[1766750148175,0.01128973,88576.0,88572.0,0.01132]
[1766750148357,0.01128961,88577.0,88572.0,0.01132]
[1766750149415,0.01128973,88576.0,88572.0,0.01132]
[1766750149619,0.01128986,88575.0,88572.0,0.01132]
[1766750149834,0.01128973,88576.0,88572.0,0.01132]
[1766750150630,0.01128986,88575.0,88572.0,0.01132]
[1766750150964,0.01128973,88576.0,88572.0,0.01132]
[1766750151835,0.01128986,88575.0,88572.0,0.01132]
[1766750152169,0.01128973,88576.0,88572.0,0.01132]
[1766750153196,0.01128986,88575.0,88572.0,0.01132]
[1766750153354,0.01128973,88576.0,88572.0,0.01132]
[1766750155200,0.01128986,88575.0,88572.0,0.01132]
[1766750161242,0.01128973,88576.0,88572.0,0.01132]
[1766750161389,0.01128986,88575.0,88567.0,0.01129088]
[1766750161599,0.01128986,88575.0,88567.0,0.01132]
[1766750161788,0.01128973,88576.0,88567.0,0.01132]
[1766750161982,0.01128986,88575.0,88567.0,0.02261088]
[1766750162199,0.01128986,88575.0,88567.0,0.01132]
[1766750162843,0.01128973,88576.0,88567.0,0.02261088]
[1766750163152,0.47182479,88577.0,88568.0,0.01129075]
[1766750163474,0.01128973,88576.0,88567.0,0.01132]
[1766750163651,0.01128973,88576.0,88567.0,0.02261088]
[1766750164737,0.47182479,88577.0,88568.0,0.01129075]
[1766750165049,0.01128986,88575.0,88567.0,0.01132]
[1766750165272,0.01128973,88576.0,88567.0,0.02261088]
[1766750165459,0.01128986,88575.0,88567.0,0.01132]
[1766750165604,0.01128973,88576.0,88567.0,0.02261088]
[1766750165800,0.40408681,88577.0,88568.0,0.01129075]
[1766750166057,0.01128948,88578.0,88568.0,0.01129075]
[1766750166253,0.01128948,88578.0,88569.0,0.01129063]
[1766750166634,0.01128948,88578.0,88570.0,0.0112905]
[1766750167040,0.01128948,88578.0,88569.0,0.01129063]
[1766750167240,0.01128948,88578.0,88570.0,0.0112905]
[1766750167561,0.01128948,88578.0,88569.0,0.01129063]
[1766750167964,0.01128935,88579.0,88570.0,0.0112905]
[1766750168125,0.40408681,88580.0,88578.0,0.00055]
[1766750168336,0.02260897,88582.0,88573.0,0.06774018]
[1766750168545,0.01132,88582.0,88574.0,0.01128999]
[1766750169130,0.02260897,88582.0,88573.0,0.06774018]
[1766750169329,0.02260897,88582.0,88574.0,0.01128999]
[1766750169553,0.02260897,88582.0,88573.0,0.01129012]
[1766750169726,0.02260897,88582.0,88571.0,0.06774188]
[1766750169727,0.0112891,88581.0,88571.0,0.06774188]
[1766750169927,0.0112891,88581.0,88571.0,0.01129037]
[1766750169928,0.01128923,88580.0,88571.0,0.01129037]
[1766750170371,0.01128923,88580.0,88572.0,0.01129024]
[1766750170570,0.01128935,88579.0,88571.0,0.01129037]
[1766750170716,0.01128923,88580.0,88571.0,0.01129037]
[1766750170916,0.41537591,88581.0,88572.0,0.01129024]
[1766750175907,0.01128935,88579.0,88570.0,0.0112905]
[1766750176101,0.01128923,88580.0,88570.0,0.0112905]
[1766750176259,0.40408681,88581.0,88572.0,0.01129024]
[1766750177421,0.41537591,88581.0,88572.0,0.01129024]
[1766750178218,0.01128935,88579.0,88571.0,0.01129037]
[1766750178427,0.01128923,88580.0,88571.0,0.01129037]
[1766750178786,0.40408681,88581.0,88573.0,0.01129012]
[1766750178984,0.40408681,88581.0,88574.0,0.01128999]
[1766750179196,0.40408681,88581.0,88573.0,0.01129012]
[1766750181159,0.40408681,88581.0,88574.0,0.01128999]
[1766750181296,0.40408681,88581.0,88573.0,0.01129012]
[1766750182573,0.40408681,88581.0,88574.0,0.01128999]
[1766750182760,0.40408681,88581.0,88573.0,0.01129012]
[1766750183127,0.02260897,88582.0,88573.0,0.01129012]
[1766750183829,0.0112891,88581.0,88572.0,0.01129024]
[1766750184013,0.0112891,88581.0,88573.0,0.01129012]
[1766750184775,0.0112891,88581.0,88572.0,0.01129024]
[1766750185276,0.01132,88582.0,88573.0,0.01129012]
[1766750185931,0.01132,88582.0,88575.0,0.01128986]
[1766750186159,0.01132,88582.0,88574.0,0.01128999]
[1766750186343,0.01132,88582.0,88575.0,0.01128986]
[1766750186526,0.01132,88582.0,88574.0,0.01128999]
[1766750187131,0.01132,88582.0,88575.0,0.01128986]
[1766750188895,0.01132,88582.0,88573.0,0.01129012]
[1766750189051,0.02260897,88582.0,88574.0,0.01128999]
[1766750189252,0.01132,88582.0,88574.0,0.01128999]
[1766750189670,0.01132,88582.0,88575.0,0.01128986]
[1766750190195,0.01128897,88582.0,88573.0,0.01129012]
[1766750190390,0.01128897,88582.0,88574.0,0.01128999]
[1766750190689,0.01128884,88583.0,88574.0,0.01128999]
[1766750191695,0.01128872,88584.0,88575.0,0.01128986]
[1766750194174,0.01128872,88584.0,88576.0,0.01128973]
[1766750194646,0.01128872,88584.0,88575.0,0.01128986]
[1766750195550,0.01128884,88583.0,88575.0,0.01128986]
[1766750196033,0.01128884,88583.0,88574.0,0.01128999]
[1766750196440,0.01128884,88583.0,88575.0,0.01128986]
[1766750197644,0.01128884,88583.0,88574.0,0.01128999]
[1766750197840,0.01128884,88583.0,88575.0,0.01128986]
[1766750198053,0.01128872,88584.0,88575.0,0.01128986]
[1766750198400,0.01128872,88584.0,88576.0,0.01128973]
[1766750198605,0.01128872,88584.0,88575.0,0.01128986]
[1766750198801,0.01128872,88584.0,88576.0,0.01128973]
[1766750199009,0.41537558,88585.0,88576.0,0.01128973]
[1766750199230,0.01128872,88584.0,88576.0,0.01128973]
[1766750199409,0.41537558,88585.0,88576.0,0.01128973]
[1766750199859,0.01128872,88584.0,88575.0,0.01128986]
[1766750200037,0.01128884,88583.0,88573.0,0.01129012]
[1766750200244,0.01128884,88583.0,88574.0,0.01128999]
[1766750201380,0.08532884,88583.0,88574.0,0.01128999]
[1766750203195,0.08532884,88583.0,88575.0,0.01128986]
[1766750203677,0.08532884,88583.0,88574.0,0.01128999]
[1766750204262,0.08532884,88583.0,88575.0,0.01128986]
[1766750204598,0.07404,88583.0,88575.0,0.01128986]
[1766750204779,0.08532884,88583.0,88574.0,0.01128999]
[1766750204984,0.07404,88583.0,88575.0,0.01128986]
[1766750205188,1.8e-07,88585.0,88577.0,0.01128961]
[1766750205521,0.01128877,88585.0,88577.0,0.01128961]
[1766750205859,0.01128877,88585.0,88576.0,0.01128973]
[1766750206407,0.01128877,88585.0,88577.0,0.01128961]
[1766750206615,0.01128877,88585.0,88576.0,0.01128973]
[1766750207012,0.01128877,88585.0,88577.0,0.01128961]
[1766750207418,0.0711,88588.0,88585.0,0.00055]
[1766750207713,0.08238821,88588.0,88580.0,0.04506763]
[1766750208067,0.01128833,88587.0,88580.0,0.04506763]
[1766750208284,0.000549,88580.0,88576.0,0.01132]
[1766750208718,0.01128897,88582.0,88576.0,0.01132]
[1766750208719,0.0823891,88581.0,88576.0,0.01132]
[1766750209442,0.0711,88581.0,88576.0,0.01132]
[1766750209725,0.0823891,88581.0,88576.0,0.01132]
[1766750210522,0.0711,88581.0,88576.0,0.01132]
[1766750210735,0.0823891,88581.0,88576.0,0.01132]
[1766750211237,0.01128923,88580.0,88576.0,0.01132]
[1766750211753,0.0711,88581.0,88576.0,0.01132]
[1766750213663,0.0823891,88581.0,88576.0,0.01132]
[1766750214021,0.0823891,88581.0,88572.0,0.06774109]
[1766750214204,0.01128923,88580.0,88573.0,0.01132]
[1766750214624,0.01128923,88580.0,88574.0,0.01132]
[1766750214781,0.0823891,88581.0,88574.0,0.01132]
[1766750214982,0.0823891,88581.0,88572.0,0.01129024]
[1766750215189,0.01128923,88580.0,88572.0,0.01129024]
[1766750215390,0.01128923,88580.0,88573.0,0.01132]
[1766750215595,0.01128923,88580.0,88568.0,0.06774447]
[1766750215596,0.06773613,88579.0,88568.0,0.06774447]
[1766750215849,0.01128935,88579.0,88570.0,0.0112905]
[1766750216049,0.01128923,88580.0,88571.0,0.01129037]
[1766750216254,0.01128923,88580.0,88572.0,0.01129024]
[1766750216792,0.01128923,88580.0,88573.0,0.01132]
[1766750216951,0.0823891,88581.0,88573.0,0.01132]
[1766750217134,0.0711,88581.0,88573.0,0.02261012]
[1766750217337,0.0711,88581.0,88574.0,0.01132]
[1766750217738,0.0711,88581.0,88575.0,0.01132]
[1766750217943,0.06773555,88580.0,88571.0,0.01129037]
[1766750218144,0.01128961,88577.0,88572.0,0.01132]
[1766750218361,0.08238948,88578.0,88573.0,0.01132]
[1766750218766,0.08238948,88578.0,88574.0,0.01132]
[1766750218995,0.0711,88578.0,88574.0,0.01132]
[1766750219203,0.0711,88578.0,88573.0,0.01129012]
[1766750219366,0.0711,88581.0,88573.0,0.02261012]
[1766750219566,0.0711,88581.0,88575.0,0.01128986]
[1766750219835,0.0711,88581.0,88576.0,0.01128973]
[1766750220030,0.0711,88581.0,88578.0,0.01128948]
[1766750220220,0.0711,88581.0,88580.0,0.04506763]
[1766750220543,0.08238833,88587.0,88580.0,0.04506763]
[1766750221361,0.01128846,88586.0,88580.0,0.04506763]
[1766750221560,0.0711,88586.0,88580.0,0.04506763]
[1766750222218,0.08238846,88586.0,88580.0,0.04506763]
[1766750222823,0.0711,88586.0,88580.0,0.04506763]
[1766750223980,0.08238846,88586.0,88580.0,0.04506763]
[1766750224279,0.0711,88586.0,88580.0,0.04506763]
[1766750224687,0.08238846,88586.0,88580.0,0.04506763]
[1766750224841,0.0711,88586.0,88580.0,0.04506763]
[1766750225049,0.01128859,88585.0,88580.0,0.04506763]
[1766750225246,0.08238846,88586.0,88580.0,0.04506763]
[1766750226166,0.0711,88586.0,88580.0,0.04506763]
[1766750226380,0.08238846,88586.0,88580.0,0.04506763]
[1766750226915,0.0711,88586.0,88580.0,0.04506763]
[1766750227360,0.12754235,88586.0,88580.0,0.04506763]
[1766750228230,0.08238846,88586.0,88580.0,0.04506763]
[1766750229042,0.0711,88584.0,88580.0,0.04506763]
[1766750230747,0.0711,88584.0,88579.0,0.01128935]
[1766750230985,0.07116493,88584.0,88579.0,0.01128935]
[1766750231525,0.07116493,88584.0,88578.0,0.01128948]
[1766750232413,0.07116493,88584.0,88579.0,0.01128935]
[1766750232606,0.07116493,88584.0,88580.0,0.01128923]
[1766750233510,6.493e-05,88584.0,88580.0,0.01128923]
[1766750233715,6.493e-05,88584.0,88581.0,0.0112891]
[1766750234209,6.493e-05,88584.0,88580.0,0.01128923]
[1766750235209,6.493e-05,88584.0,88578.0,0.01128948]
[1766750235391,6.493e-05,88584.0,88579.0,0.01128935]
[1766750235787,6.493e-05,88584.0,88577.0,0.06773726]
[1766750236109,6.493e-05,88584.0,88578.0,0.01128948]
[1766750236440,6.493e-05,88584.0,88577.0,0.01128961]
[1766750236955,6.493e-05,88584.0,88578.0,0.01128948]
[1766750237327,6.493e-05,88584.0,88577.0,0.01128961]
[1766750238471,6.493e-05,88584.0,88578.0,0.01128948]
[1766750239669,6.493e-05,88584.0,88577.0,0.01128961]
[1766750239831,6.493e-05,88584.0,88578.0,0.01128948]
[1766750241781,6.493e-05,88584.0,88577.0,0.01128961]
[1766750242234,6.493e-05,88584.0,88578.0,0.01128948]
[1766750242435,6.493e-05,88584.0,88577.0,0.01128961]
[1766750243868,6.493e-05,88584.0,88581.0,0.0112891]
[1766750244191,0.05412057,88586.0,88584.0,6.4e-05]
[1766750244393,0.05643688,88595.0,88584.0,6.4e-05]
[1766750244394,0.01128642,88602.0,88589.0,1e-08]
[1766750244595,0.03387551,88599.0,88594.0,0.01128744]
[1766750244758,0.01132,88597.0,88594.0,0.01128744]
[1766750244955,0.01128629,88603.0,88594.0,0.01128744]
[1766750245355,0.01132,88602.0,88594.0,0.01128744]
[1766750245610,0.02260642,88602.0,88593.0,0.06772514]
[1766750245757,0.02260642,88602.0,88593.0,0.01128757]
[1766750246598,0.07903906,88602.0,88591.0,0.01128782]
[1766750246771,0.0112868,88599.0,88590.0,0.01128795]
[1766750247202,0.01128731,88595.0,88589.0,0.04958]
[1766750247409,0.070129,88590.0,88583.0,0.01132]
[1766750247610,0.01128821,88588.0,88583.0,0.01132]
[1766750247814,0.08086795,88590.0,88583.0,0.01132]
[1766750248306,0.08086808,88589.0,88583.0,0.010771]
[1766750249585,0.08086808,88589.0,88580.0,0.05635686]
[1766750250121,0.01128821,88588.0,88580.0,0.01128923]
[1766750250328,0.06958,88588.0,88580.0,0.05635686]
[1766750250663,0.06958,88588.0,88582.0,0.01128897]
[1766750250938,0.06958,88588.0,88581.0,0.0112891]
[1766750251139,0.06958,88588.0,88580.0,0.05635686]
[1766750251519,0.06958,88588.0,88581.0,0.0112891]
[1766750251717,0.06958,88588.0,88582.0,0.01128897]
[1766750252236,0.069031,88588.0,88583.0,0.01128884]
[1766750253127,0.069031,88588.0,88582.0,0.01128897]
[1766750254532,0.069031,88588.0,88581.0,0.0112891]
[1766750254732,0.069031,88588.0,88580.0,0.05635686]
[1766750254932,0.069031,88588.0,88581.0,0.0112891]
[1766750255332,0.08031921,88588.0,88580.0,0.05635686]
[1766750255534,0.069031,88588.0,88580.0,0.05635686]
[1766750256945,0.069031,88588.0,88581.0,0.0112891]
[1766750257249,0.069031,88588.0,88582.0,0.01128897]
[1766750257554,0.069031,88588.0,88580.0,0.05635686]
[1766750257953,0.069031,88588.0,88581.0,0.0112891]
[1766750259160,0.069031,88588.0,88583.0,0.01128884]
[1766750260482,0.069031,88588.0,88584.0,0.01128872]
[1766750260665,0.069031,88588.0,88582.0,0.01128897]
[1766750261221,0.069031,88588.0,88581.0,0.06773427]
[1766750261797,0.069031,88588.0,88582.0,0.01128897]
[1766750263063,0.069031,88588.0,88581.0,0.06773427]
[1766750263281,0.05643829,88593.0,88580.0,0.05635686]
[1766750263282,0.06958,88597.0,88582.0,0.03861]
[1766750263673,0.01132,88596.0,88589.0,0.01128808]
[1766750263855,0.01132,88596.0,88588.0,0.01128821]
[1766750264059,0.01132,88596.0,88589.0,0.01128808]
[1766750264245,0.01132,88596.0,88588.0,0.01128821]
[1766750264378,0.02260719,88596.0,88587.0,0.06772962]
[1766750264585,0.02260719,88596.0,88588.0,0.01128821]
[1766750264784,0.01132,88596.0,88589.0,0.01128808]
[1766750265035,0.01132,88596.0,88588.0,0.01128821]
[1766750265485,0.01128731,88595.0,88586.0,0.01128846]
[1766750265689,0.01128731,88595.0,88587.0,0.01128833]
[1766750266285,0.01128731,88595.0,88586.0,0.01128846]
[1766750266493,0.01128731,88595.0,88587.0,0.01128833]
[1766750268450,0.01132,88596.0,88588.0,0.01128821]
[1766750268695,0.01132,88596.0,88589.0,0.01128808]
[1766750269398,0.01132,88596.0,88588.0,0.01128821]
[1766750269399,0.02260719,88596.0,88588.0,0.01128821]
[1766750269602,0.01132,88596.0,88589.0,0.01128808]
[1766750269804,0.06958,88597.0,88588.0,0.01128821]
[1766750269952,0.01132,88596.0,88588.0,0.01128821]
[1766750270348,0.1250069,88595.0,88590.0,0.01128795]
[1766750270653,0.01132,88596.0,88591.0,0.01128782]
[1766750272008,0.01132,88596.0,88590.0,0.01128795]
[1766750272184,0.01132,88596.0,88588.0,0.01128821]
[1766750272386,0.01132,88596.0,88587.0,0.01128833]
[1766750272583,0.02260719,88596.0,88588.0,0.01128821]
[1766750272787,0.01128731,88595.0,88587.0,0.01128833]
[1766750273476,0.02260719,88596.0,88588.0,0.01128821]
[1766750273676,0.02260719,88596.0,88587.0,0.01128833]
[1766750273904,0.01128731,88595.0,88586.0,0.01128846]
[1766750274289,0.01128731,88595.0,88587.0,0.01128833]
[1766750274618,0.01128744,88594.0,88586.0,0.01128846]
[1766750274812,0.01128731,88595.0,88587.0,0.01128833]
[1766750275448,0.01128744,88594.0,88586.0,0.01128846]
[1766750275626,0.01128731,88595.0,88585.0,0.11766152]
[1766750275796,0.0112877,88592.0,88585.0,0.04993]
[1766750276006,0.01132,88596.0,88580.0,0.40400826]
[1766750276007,0.06773002,88587.0,88580.0,0.40400826]
[1766750276208,0.07291,88598.0,88572.0,0.01129024]
[1766750276209,0.000549,88580.0,88572.0,0.01129024]
[1766750276430,0.000549,88580.0,88565.0,0.0002]
[1766750276431,0.000549,88580.0,88570.0,0.0112905]
[1766750276729,0.41529723,88582.0,88572.0,0.01129024]
[1766750277108,0.41529723,88582.0,88573.0,0.01129012]
[1766750277109,0.40400826,88582.0,88573.0,0.01129012]
[1766750277318,0.40400826,88583.0,88575.0,0.01128986]
[1766750277559,0.01128884,88583.0,88572.0,0.01129024]
[1766750277707,0.41529723,88582.0,88573.0,0.01129012]
[1766750277907,0.41529723,88582.0,88572.0,0.01129024]
[1766750278115,0.0112891,88581.0,88572.0,0.01129024]
[1766750278536,0.41529723,88582.0,88573.0,0.01129012]
[1766750280258,0.0112891,88581.0,88572.0,0.01129024]
[1766750280671,0.41529723,88582.0,88573.0,0.01129012]
[1766750281249,0.40400826,88582.0,88574.0,0.01128999]
[1766750281470,0.41529723,88582.0,88573.0,0.01129012]
[1766750282043,0.0112891,88581.0,88572.0,0.01129024]
[1766750282247,0.01128897,88582.0,88573.0,0.01129012]
[1766750282454,0.41529723,88582.0,88572.0,0.01129024]
[1766750282656,0.41529723,88582.0,88573.0,0.01129012]
[1766750283213,0.0112891,88581.0,88572.0,0.01129024]
[1766750283719,0.0112891,88581.0,88571.0,0.06774185]
[1766750284665,0.0112891,88581.0,88572.0,0.01129024]
[1766750284965,0.01128923,88580.0,88571.0,0.01129037]
[1766750285980,0.01128935,88579.0,88570.0,0.06767813]
[1766750286414,0.01128948,88578.0,88570.0,0.05638763]
[1766750286618,0.01128961,88577.0,88570.0,0.05638763]
[1766750287762,0.01128961,88577.0,88570.0,0.04506763]
[1766750287944,0.000549,88570.0,88569.0,0.01132]
[1766750288139,0.01129024,88572.0,88569.0,0.01132]
[1766750288613,0.01129012,88573.0,88569.0,0.01132]
[1766750288808,0.01129024,88572.0,88569.0,0.01132]
[1766750289010,0.01129024,88572.0,88560.0,0.14702985]
[1766750289011,0.01120983,88566.0,88552.0,0.01129279]
[1766750289232,0.01129165,88561.0,88553.0,0.05638763]
[1766750289437,0.40400826,88562.0,88553.0,0.05638763]
[1766750289636,0.01129165,88561.0,88553.0,0.05638763]
[1766750289818,0.01129177,88560.0,88553.0,0.05638763]
[1766750290538,0.41529978,88562.0,88553.0,0.0676803]
[1766750290884,0.01129165,88561.0,88553.0,0.05638763]
[1766750291295,0.01129177,88560.0,88553.0,0.05638763]
[1766750292138,0.01129165,88561.0,88553.0,0.01132]
[1766750292917,0.40400826,88562.0,88554.0,0.01129254]
[1766750293138,0.40400826,88562.0,88553.0,0.02261267]
[1766750293344,0.01129165,88561.0,88553.0,0.01132]
[1766750293582,0.41529978,88562.0,88553.0,0.02261267]
[1766750293744,0.01129165,88561.0,88553.0,0.01132]
[1766750294097,0.41529978,88562.0,88553.0,0.02261267]
[1766750294543,0.01129165,88561.0,88553.0,0.01132]
[1766750295155,0.06879,88560.0,88554.0,0.01129254]
[1766750295395,0.06824,88560.0,88555.0,0.01129241]
[1766750295743,0.06824,88560.0,88556.0,0.01129228]
[1766750296271,0.06824,88560.0,88555.0,0.01129241]
[1766750296945,0.06824,88560.0,88556.0,0.01129228]
[1766750297703,0.06824,88560.0,88555.0,0.01129241]
[1766750298076,0.06824,88560.0,88556.0,0.01129228]
[1766750298952,0.06824,88560.0,88555.0,0.01129241]
[1766750299192,0.06824,88560.0,88553.0,0.07907544]
[1766750300034,0.06824,88560.0,88554.0,0.01129254]
[1766750300579,0.06824,88560.0,88553.0,0.02261267]
[1766750302851,0.06824,88560.0,88554.0,0.01129254]
[1766750303034,0.06824,88560.0,88553.0,0.02261267]
[1766750305040,0.06824,88560.0,88554.0,0.01129254]
[1766750305251,0.06824,88560.0,88553.0,0.01132]
[1766750305448,0.06824,88560.0,88553.0,0.010221]
[1766750305656,0.04517829,88561.0,88547.0,0.05646664]
[1766750305657,0.08008228,88556.0,88547.0,0.01129343]
[1766750305876,0.0804419,88556.0,88547.0,0.01129343]
[1766750306078,0.06914962,88556.0,88547.0,0.01129343]
[1766750306484,0.06879,88554.0,88544.0,0.01129382]
[1766750306688,0.06879,88552.0,88544.0,0.01129382]
[1766750306935,0.06879,88552.0,88544.0,0.06776235]
[1766750307137,0.06879,88552.0,88546.0,0.01129356]
[1766750307343,0.06879,88552.0,88547.0,0.01129343]
[1766750308401,0.06879,88552.0,88546.0,0.01129356]
[1766750309180,0.06879,88552.0,88547.0,0.01129343]
[1766750309566,0.06879,88552.0,88548.0,0.0112933]
[1766750310462,0.068241,88552.0,88548.0,0.0112933]
[1766750311261,0.068241,88552.0,88547.0,0.01129343]
[1766750311824,0.068241,88552.0,88546.0,0.01129356]
[1766750312057,0.10267947,88551.0,88544.0,0.05646879]
[1766750312259,0.10267947,88551.0,88544.0,0.04412604]
[1766750312463,0.10267947,88551.0,88546.0,0.01129356]
[1766750313065,0.10267947,88551.0,88545.0,0.01129369]
[1766750313284,0.10267947,88551.0,88546.0,0.01129356]
[1766750313743,0.10267947,88551.0,88545.0,0.01129369]
[1766750313902,0.10267947,88551.0,88546.0,0.01129356]
[1766750314582,0.10267947,88551.0,88545.0,0.01129369]
[1766750314816,0.10267947,88551.0,88546.0,0.01129356]
[1766750316234,0.10267947,88551.0,88547.0,0.01129343]
[1766750316569,0.10267947,88551.0,88546.0,0.01129356]
[1766750316774,0.10267947,88551.0,88547.0,0.01129343]
[1766750316975,0.10212947,88551.0,88547.0,0.01129343]
[1766750317271,0.10212947,88551.0,88546.0,0.01129356]
[1766750318029,0.10212947,88551.0,88545.0,0.06776181]
[1766750318243,0.10212947,88551.0,88546.0,0.01129356]
[1766750318999,0.10212947,88551.0,88545.0,0.06776181]
[1766750319000,0.10212947,88551.0,88545.0,0.01129369]
[1766750319201,0.10212947,88551.0,88546.0,0.01129356]
[1766750319634,0.10212947,88551.0,88545.0,0.01129369]
[1766750320172,0.000549,88545.0,88543.0,0.01152]
[1766750320373,0.10212947,88551.0,88543.0,0.07928334]
[1766750320518,0.10212947,88551.0,88545.0,0.01129369]
[1766750320863,0.10212947,88551.0,88544.0,0.01129382]
[1766750321360,0.10212947,88551.0,88545.0,0.01129369]
[1766750321657,0.10197081,88551.0,88545.0,0.01129369]
[1766750322159,0.10197081,88551.0,88544.0,0.01129382]
[1766750323869,0.10131286,88551.0,88544.0,0.01129382]
[1766750325479,0.10131286,88551.0,88545.0,0.01129369]
[1766750326079,0.10131286,88551.0,88544.0,0.01129382]
[1766750326686,0.10131286,88551.0,88545.0,0.01129369]
[1766750326861,0.10131286,88551.0,88544.0,0.01129382]
[1766750328787,0.000549,88544.0,88543.0,0.02281394]
[1766750328984,0.11550578,88551.0,88543.0,0.02281394]
[1766750329189,0.10421286,88551.0,88543.0,0.02281394]
[1766750329394,0.10421286,88551.0,88544.0,0.01129382]
[1766750329538,0.10421286,88551.0,88543.0,0.02281394]
[1766750329738,0.10421286,88551.0,88544.0,0.01129382]
[1766750330492,0.10421286,88551.0,88543.0,0.02281394]
[1766750330893,0.10421286,88551.0,88544.0,0.01129382]
[1766750331675,0.10421286,88551.0,88545.0,0.01129369]
[1766750331870,0.10421286,88551.0,88544.0,0.01129382]
[1766750332856,0.10421286,88551.0,88543.0,0.02281394]
[1766750333192,0.10421286,88551.0,88544.0,0.01129382]
[1766750333794,0.03252286,88551.0,88543.0,0.01152]
[1766750333999,0.07169,88550.0,88543.0,0.02281394]
[1766750334993,0.10557947,88550.0,88543.0,0.02226494]
[1766750336577,0.10557947,88550.0,88544.0,0.01129382]
[1766750337829,0.07169,88550.0,88543.0,0.02226494]
[1766750338801,0.08298305,88550.0,88543.0,0.010971]
[1766750339131,0.07169,88550.0,88543.0,0.010971]
[1766750339300,0.07169,88550.0,88543.0,0.02226494]
[1766750340194,0.07169,88550.0,88543.0,0.010971]
[1766750340399,0.01129292,88551.0,88543.0,0.010971]
[1766750340595,0.01129292,88551.0,88543.0,0.02226494]
[1766750341316,0.01129318,88549.0,88543.0,0.00286742]
[1766750341634,0.01129305,88550.0,88540.0,0.01129433]
[1766750341635,0.07169,88545.0,88540.0,0.04506763]
[1766750341784,0.07169,88545.0,88537.0,0.07908783]
[1766750341984,0.01129356,88546.0,88537.0,0.04506763]
[1766750342243,0.41574527,88547.0,88537.0,0.04506763]
[1766750342244,0.0112942,88541.0,88537.0,0.04506763]
[1766750342389,0.01129433,88540.0,88537.0,0.04506763]
[1766750342605,0.06776661,88540.0,88537.0,0.04506763]
[1766750342842,0.01129433,88540.0,88537.0,0.04506763]
[1766750343361,0.01129407,88542.0,88533.0,0.01129522]
[1766750343590,0.01129407,88542.0,88534.0,0.01129509]
[1766750343772,0.03389633,88541.0,88534.0,0.01129509]
[1766750343951,0.03389633,88541.0,88533.0,0.01129522]
[1766750344536,0.04519053,88541.0,88533.0,0.01129522]
[1766750344742,0.04519053,88541.0,88532.0,0.01129535]
[1766750345281,0.01132,88540.0,88533.0,0.01129522]
[1766750345476,0.01132,88540.0,88532.0,0.01129535]
[1766750346413,0.0112942,88541.0,88532.0,0.01129535]
[1766750346546,0.01132,88540.0,88532.0,0.01129535]
[1766750346949,0.01132,88540.0,88533.0,0.01129522]
[1766750348496,0.01132,88540.0,88534.0,0.08624509]
[1766750348865,0.01132,88540.0,88534.0,0.07495]
[1766750349453,0.010771,88540.0,88534.0,0.08624509]
[1766750350475,0.010771,88540.0,88534.0,0.07495]
[1766750350913,0.0677686,88537.0,88534.0,0.074401]
[1766750351118,0.0677686,88537.0,88529.0,0.12001763]
[1766750351119,0.01129496,88535.0,88529.0,0.12001763]